Cogmind - Beta 13 *** ADVENTURER MODE // 2024.05.31 @ 17:33:19 Player: XO-OCH Result: Destroyed by G-47 Trooper with Particle Gun Performance ------------- Evolutions (1) 500 Regions Visited (6) 1200 Robots Destroyed (21) 105 Value Destroyed (446) 446 Prototype IDs (0) 0 Alien Tech Used (0) 0 Bonus (58) 58 TOTAL SCORE: 2309 Bonus ------- Follower Combat Kills 58 Cogmind --------- Core Integrity 0/400 Matter 188/300 Energy 48/100 System Corruption 3% Temperature Cool (9) Movement Core (100) Ox1 Location -8/Mines Parts ------- > --- POWER (1) -------- (None) > --- PROPULSION (3) --- (None) > --- UTILITY (3) ------ Improved Heat Sink Improved Signal Interpreter > --- WEAPON (2) ------- Particle Gun > --- INVENTORY (5) ---- Mining Claw Peak State ------------ > --- POWER ------------ Light Ion Engine > --- PROPULSION ------- Aluminum Leg Aluminum Leg Flexi-carbon Leg > --- UTILITY ---------- Improved Heat Sink Small Storage Unit Improved Signal Interpreter > --- WEAPON ----------- Particle Gun High-powered Shotgun > --- INVENTORY -------- Light Ion Engine Aluminum Leg Aluminum Leg Medium Laser Rocket Launcher Mining Claw [Rating: 20] Favorites ----------- Power Light Ion Engine Engine Light Ion Engine Propulsion Aluminum Leg Leg Aluminum Leg Utility Small Storage Unit Device Improved Heat Sink Storage Small Storage Unit Processor Improved Signal Interpreter Protection Light Armor Plating Weapon Particle Gun Energy Gun Particle Gun Ballistic Gun High-powered Shotgun Launcher Rocket Launcher Slashing Weapon Mining Claw Build | -11 -10 -10 -9 -9 -9 -8 ------- Run | Yrd Mat Min Mat Min Exi Min Slots Evolved 2 | . . . 2 . . . Power . | . . . . . . . Propulsion 1 | . . . 1 . . . Utility 1 | . . . 1 . . . Weapon . | . . . . . . . Parts Attached 26 | 2 . 10 6 4 . 4 Power 3 | 1 . 1 . 1 . . Engine 3 | 1 . 1 . 1 . . Core . | . . . . . . . Reactor . | . . . . . . . Propulsion 6 | . . 3 1 2 . . Treads . | . . . . . . . Leg 6 | . . 3 1 2 . . Wheel . | . . . . . . . Hover . | . . . . . . . Flight . | . . . . . . . Utility 5 | . . 2 2 . . 1 Device 3 | . . 1 1 . . 1 Storage . | . . . . . . . Processor 1 | . . 1 . . . . Hackware . | . . . . . . . Protection 1 | . . . 1 . . . Artifact . | . . . . . . . Weapon 12 | 1 . 4 3 1 . 3 Energy Gun 5 | 1 . 2 . . . 2 Energy Cannon . | . . . . . . . Ballistic Gun 3 | . . 1 1 1 . . Ballistic Cannon . | . . . . . . . Launcher 1 | . . . . . . 1 Special Weapon . | . . . . . . . Impact Weapon . | . . . . . . . Slashing Weapon 3 | . . 1 2 . . . Piercing Weapon . | . . . . . . . Special Melee Weapon . | . . . . . . . Unidentified Prototypes . | . . . . . . . Parts Lost 12 | . . 1 5 . . 6 Power 3 | . . 1 1 . . 1 Propulsion 5 | . . . 3 . . 2 Utility 2 | . . . 1 . . 1 Weapon 2 | . . . . . . 2 Highest Loss Streak 6 | . . 1 5 . . 6 To Critical Strikes . | . . . . . . . Average Slot Usage (%) 85 | . 85 97 95 75 77 69 Engine 11 | . 14 14 11 9 11 9 Leg 25 | . 28 28 30 22 22 17 Device 2 | . . 4 5 . . 2 Storage 12 | . 14 14 11 11 11 9 Processor 8 | . . 7 11 11 11 11 Energy Gun 14 | . 28 15 11 11 11 3 Ballistic Gun 6 | . . 7 4 11 11 10 Slashing Weapon 2 | . . 5 6 . . . Naked Turns . | . . . . . . . Heaviest Build 17 | 14 14 17 17 14 14 15 Greatest Support 40 | 20 20 20 40 20 20 20 Greatest Overweight (x) 4 | . . . 4 . . . Average Overweight (x) . | . . . . . . . Largest Inventory Capacity 8 | 8 8 8 8 8 8 8 Average Capacity 7 | 8 8 8 8 8 8 7 Most Carried 8 | 6 8 8 7 6 4 4 Average Carried 5 | 6 7 7 6 4 4 3 Final Capacity 8 | 8 8 8 8 8 8 5 Final Carried 8 | 6 8 8 7 4 4 1 Class Distribution -------------------- 75% | Mutant 24% | Scavenger-Mutant Dominant Class ---------------- Mutant | -10/Materials Mutant | -10/Mines Scavenger-Mutant | -9/Materials Mutant | -9/Mines Mutant | -9/Exiles Mutant | -8/Mines Resources | -11 -10 -10 -9 -9 -9 -8 ----------- Run | Yrd Mat Min Mat Min Exi Min Matter Collected 439 | 200 20 . 135 55 . 29 Remotely . | . . . . . . . Salvage Created 440 | . 106 56 53 47 . 178 Parts 27 | . 8 4 3 6 . 6 Haulers Intercepted . | . . . . . . . Recyclers Shooed . | . . . . . . . Parts Field Recycled . | . . . . . . . Retrieved Matter . | . . . . . . . Parts Self-Destructed . | . . . . . . . Prevented . | . . . . . . . Kills | -11 -10 -10 -9 -9 -9 -8 ------- Run | Yrd Mat Min Mat Min Exi Min Combat Hostiles Destroyed 21 | . 7 1 2 4 . 7 Guns 19 | . 7 1 2 4 . 5 AOE 2 | . . . . . . 2 Classes Destroyed 4 | . 2 . 1 . . 1 Swarmer 14 | . 6 . 1 4 . 3 Grunt 5 | . 1 1 . . . 3 Brawler 1 | . . . . . . 1 Sentry 1 | . . . 1 . . . Best Kill Streak 5 | . 4 1 1 5 . 4 Combat Bots Only 5 | . 4 1 1 5 . 4 Max Kills in Single Turn 2 | . 1 1 1 2 . 1 Gunslinging . | . . . . . . . Exploded 1 | . . . . . . 1 Melee . | . . . . . . . Uniques/NPCs Destroyed . | . . . . . . . Combat | -11 -10 -10 -9 -9 -9 -8 -------- Run | Yrd Mat Min Mat Min Exi Min Hostile Shots Fired 130 | . 30 8 27 21 . 44 Missed 31 | . 7 1 7 6 . 10 Damage Taken 1716 | . 141 238 801 90 . 446 Core 500 | . 31 66 183 32 . 188 Absorbed by Shields . | . . . . . . . Ignored by Resistances 334 | . 50 64 63 30 . 127 Core Remaining (%) 80 | 100 . 61 . . . . Volleys Fired 43 | . 12 2 10 5 . 14 Largest 2 | . 2 2 1 2 . 2 Hottest 115 | . 100 100 65 90 . 115 Shots Fired 70 | . 24 4 10 10 1 21 Gun 64 | . 24 4 10 10 1 15 Cannon . | . . . . . . . Launcher 6 | . . . . . . 6 Special . | . . . . . . . Kinetic 11 | . . . . 5 . 6 Thermal 53 | . 24 4 10 5 1 9 Explosive 6 | . . . . . . 6 Electromagnetic . | . . . . . . . Robot Hit Streak 17 | . 6 10 17 4 . 5 Robot Miss Streak 2 | . 2 . 1 2 1 2 Penetration Max . | . . . . . . . Secondary Targets 2 | . . . . . . 2 Max Gunslinging Chain 1 | . . . . . . 1 Shots Hit Robots 48 | . 13 5 9 6 . 15 Core Hits 33 | . 8 3 3 4 . 15 Critical Kills . | . . . . . . . Critical Parts Destroyed . | . . . . . . . Critical Strikes 3 | . 3 . . . . . Burn 3 | . 3 . . . . . Melee Attacks 24 | . . 6 18 . . . Impact . | . . . . . . . Slashing 24 | . . 6 18 . . . Piercing . | . . . . . . . Sneak Attacks . | . . . . . . . Combat Hostiles . | . . . . . . . Follow-up Attacks . | . . . . . . . Damage Inflicted 1200 | . 161 76 145 92 . 726 Guns 650 | . 161 51 145 92 . 201 Cannons . | . . . . . . . Explosions 525 | . . . . . . 525 Melee 25 | . . 25 . . . . Ramming . | . . . . . . . Kinetic 153 | . . . . 62 . 91 Thermal 497 | . 161 51 145 30 . 110 Explosive 525 | . . . . . . 525 Electromagnetic . | . . . . . . . Impact . | . . . . . . . Slashing 25 | . . 25 . . . . Piercing . | . . . . . . . Highest Corruption 3 | . . . 3 3 3 3 Average Corruption 2 | . . . 2 3 3 3 Corruption Purged . | . . . . . . . Corruption Blocked . | . . . . . . . Effects 13 | . . . 1 3 7 2 Message Errors 2 | . . . . . 2 . Matter Fused 5 | . . . . 2 3 . Energy Discharges 2 | . . . . 1 . 1 Parts Rejected 1 | . . . . . . 1 Data Loss (minor) 1 | . . . 1 . . . Data Loss (major) 1 | . . . . . 1 . Misfires 1 | . . . . . 1 . Overload Shots . | . . . . . . . Overflow Damage 24 | . . . . . . 24 Projectiles . | . . . . . . . Explosions 24 | . . . . . . 24 Melee . | . . . . . . . Knockbacks . | . . . . . . . Impact . | . . . . . . . Kinetic . | . . . . . . . Secondary . | . . . . . . . Self-Inflicted Damage 60 | . . . . . . 60 Shots 3 | . . . . . . 3 Rammed . | . . . . . . . Targets Rammed . | . . . . . . . Kicked . | . . . . . . . Crushed . | . . . . . . . Highest Temperature 270 | . 265 96 270 30 22 63 Average Temperature 86 | . 118 56 137 15 11 22 Received Heat Transfer 471 | . 24 18 159 . . 270 Effects 2 | . 1 . 1 . . . Energy Bleed 2 | . 1 . 1 . . . Siege Activations . | . . . . . . . Robots Corrupted . | . . . . . . . Combat Hostiles . | . . . . . . . Parts Fried . | . . . . . . . Impact Corruptions . | . . . . . . . Robots Melted . | . . . . . . . Combat Hostiles . | . . . . . . . Parts Melted 4 | . 2 . 2 . . . Heat Transferred 1517 | . 703 148 333 74 . 259 Parts Sabotaged . | . . . . . . . Parts Stolen . | . . . . . . . Parts Stripped . | . . . . . . . Power Chain Reactions . | . . . . . . . Alert | -11 -10 -10 -9 -9 -9 -8 ------- Run | Yrd Mat Min Mat Min Exi Min Peak Influence 198 | . 198 126 152 136 . 142 Initial 64 | . . 64 37 46 . . Average 98 | . 84 115 78 130 . 82 Maximum Alert Level . | . . . . . . . Low Security (%) 100 | 100 100 100 100 100 . 100 Level 1 . | . . . . . . . Level 2 . | . . . . . . . Level 3 . | . . . . . . . Level 4 . | . . . . . . . Level 5 . | . . . . . . . High Security . | . . . . . . . Max Security . | . . . . . . . Squads Dispatched 2 | . . 1 1 . . . Investigation 2 | . . 1 1 . . . Extermination . | . . . . . . . Reinforcement . | . . . . . . . Assault . | . . . . . . . Garrison . | . . . . . . . Intercept . | . . . . . . . Searches Triggered . | . . . . . . . Construction Impeded . | . . . . . . . Haulers Reinforced . | . . . . . . . Active Scanning Responses . | . . . . . . . Cargo Convoy Interrupts . | . . . . . . . Stealth | -11 -10 -10 -9 -9 -9 -8 --------- Run | Yrd Mat Min Mat Min Exi Min Distress Signals 3 | . 1 . 2 . . . Communications Jammed . | . . . . . . . Distress Signals . | . . . . . . . Times Spotted 42 | . 13 4 13 4 . 8 Peak Tracking Total 7 | . 7 2 7 4 . 5 Tactical Retreats 4 | . 1 1 2 . . . Traps | -11 -10 -10 -9 -9 -9 -8 ------- Run | Yrd Mat Min Mat Min Exi Min Traps Triggered 1 | . . . 1 . . . Indirectly . | . . . . . . . Trap Hack Attempts . | . . . . . . . Triggered . | . . . . . . . Disarmed . | . . . . . . . Reprogrammed . | . . . . . . . Reused . | . . . . . . . Traps Extracted . | . . . . . . . Installed . | . . . . . . . Triggered . | . . . . . . . Machines | -11 -10 -10 -9 -9 -9 -8 ---------- Run | Yrd Mat Min Mat Min Exi Min Machines Disabled 1 | . . . 1 . . . Max in Single Turn 1 | . . . 1 . . . Machines Repaired . | . . . . . . . Machines Dismantled . | . . . . . . . Machines Sabotaged . | . . . . . . . Overloaded Fab Kills . | . . . . . . . Hacking | -11 -10 -10 -9 -9 -9 -8 --------- Run | Yrd Mat Min Mat Min Exi Min Machines Accessed 5 | . 2 1 1 . 1 . Terminals 3 | . 2 . 1 . . . Fabricators . | . . . . . . . Repair Stations . | . . . . . . . Recycling Units . | . . . . . . . Scanalyzers . | . . . . . . . Garrison Access . | . . . . . . . Total Hacks 10 | . 5 1 2 . 2 . Successful 5 | . 1 1 1 . 2 . Failed 5 | . 4 . 1 . . . Catastrophic 1 | . 1 . . . . . Database Lockouts . | . . . . . . . Manual 4 | . 2 . 2 . . . Terminals 7 | . 5 . 2 . . . Fabricators . | . . . . . . . Repair Stations . | . . . . . . . Recycling Units . | . . . . . . . Scanalyzers . | . . . . . . . Garrison Access . | . . . . . . . Terminal Hacks 5 | . 1 1 1 . 2 . Record 2 | . . . . . 2 . Open Door 1 | . . 1 . . . . Branch Access Points 2 | . 1 . 1 . . . Fabricator Hacks . | . . . . . . . Repair Station Hacks . | . . . . . . . Recycling Unit Hacks . | . . . . . . . Scanalyzer . | . . . . . . . Garrison Access Hacks . | . . . . . . . Unauthorized Hacks . | . . . . . . . Terminals . | . . . . . . . Fabricators . | . . . . . . . Repair Stations . | . . . . . . . Recycling Units . | . . . . . . . Scanalyzers . | . . . . . . . Garrison Access . | . . . . . . . Data Cores Recovered . | . . . . . . . Used . | . . . . . . . Hacking Detections 3 | . 2 . 1 . . . Full Trace Events . | . . . . . . . Feedback Events . | . . . . . . . Feedback Blocked . | . . . . . . . Robot Schematics Acquired . | . . . . . . . Robots Built . | . . . . . . . Authchips . | . . . . . . . Time . | . . . . . . . Total Robot Build Rating . | . . . . . . . Part Schematics Acquired . | . . . . . . . Parts Built . | . . . . . . . Authchips . | . . . . . . . Time . | . . . . . . . Total Part Build Rating . | . . . . . . . Parts Repaired . | . . . . . . . Time . | . . . . . . . Parts Recycled . | . . . . . . . Recycled Matter . | . . . . . . . Retrieved Matter . | . . . . . . . Retrieved Components . | . . . . . . . Parts Scanalyzed . | . . . . . . . Part Schematics Acquired . | . . . . . . . Parts Damaged . | . . . . . . . Bothacking | -11 -10 -10 -9 -9 -9 -8 ------------ Run | Yrd Mat Min Mat Min Exi Min Used RIF Installer . | . . . . . . . Robots Hacked . | . . . . . . . Non-combat . | . . . . . . . Combat . | . . . . . . . Robot Hacks Applied . | . . . . . . . Relay Couplers Released . | . . . . . . . Fabnet Peak Effective % . | . . . . . . . Robots Rewired . | . . . . . . . Allies Hacked . | . . . . . . . Hacks Repelled . | . . . . . . . Allies | -11 -10 -10 -9 -9 -9 -8 -------- Run | Yrd Mat Min Mat Min Exi Min Total Allies 2 | . . 2 . . . . Largest Group 2 | . . 2 2 . . . Highest-Rated Group 42 | . . 42 42 . . . Highest-Rated Ally 31 | . . 31 31 . . . Total Orders . | . . . . . . . Ally Attacks 10 | . . . 10 . . . Total Damage 86 | . . . 86 . . . Kills 2 | . . . 2 . . . Allies Corrupted . | . . . . . . . Allies Melted . | . . . . . . . Intel | -11 -10 -10 -9 -9 -9 -8 ------- Run | Yrd Mat Min Mat Min Exi Min Robot Analysis Total . | . . . . . . . Derelict Logs Recovered . | . . . . . . . Drone Launches . | . . . . . . . Drone Recoveries . | . . . . . . . Exploration | -11 -10 -10 -9 -9 -9 -8 ------------- Run | Yrd Mat Min Mat Min Exi Min Turns Passed 1305 | 3 243 297 220 135 295 112 Spaces Moved 875 | 1 167 198 107 97 246 59 Core 3 | . . . 3 . . . Treads . | . . . . . . . Legs 872 | 1 167 198 104 97 246 59 Wheels . | . . . . . . . Hover . | . . . . . . . Flight . | . . . . . . . Fastest Speed 120 | 120 120 120 120 120 120 120 Average Speed 120 | 120 120 120 123 120 120 120 Slowest Speed 250 | 120 120 120 250 120 120 120 Overloaded Moves . | . . . . . . . Propulsion Burnouts . | . . . . . . . Robots Hopped . | . . . . . . . Cave-ins Triggered 2 | . . . 2 . . . Exploration Rate (%) 31 | 2 34 54 13 34 62 24 Regions Visited 6 Branch Regions 4 Pre-discovered Areas 1 | . . . . . 1 . Known Exits Taken 5 | . 1 1 1 1 1 . Unknown Exits Taken 1 | 1 . . . . . . Scrap Searched 1 | . . . . 1 . . Spaces Dug 29 | . . 5 15 . . 9 Terrain Destroyed 81 | . . 5 15 . . 61 Melee 20 | . . 5 15 . . . Projectile . | . . . . . . . AOE 61 | . . . . . . 61 Terrain Rammed . | . . . . . . . Walls Destroyed . | . . . . . . . Machines Disabled . | . . . . . . . Actions | -11 -10 -10 -9 -9 -9 -8 --------- Run | Yrd Mat Min Mat Min Exi Min Total 1005 | 2 185 240 148 105 246 79 Wait 26 | . 5 12 7 . . 2 Move 869 | . 166 197 106 96 245 59 Hop . | . . . . . . . Pick Up 10 | . 2 7 1 . . . Fast Attach 1 | . . 1 . . . . Attach 9 | . . 1 2 3 . 3 Detach . | . . . . . . . Swap 16 | 2 . 8 4 1 . 1 Drop 6 | . . 6 . . . . Fire 43 | . 12 2 10 5 . 14 Melee 24 | . . 6 18 . . . Ram . | . . . . . . . Kick . | . . . . . . . Crush . | . . . . . . . Escape Stasis . | . . . . . . . Rewire 1 | . . . . . 1 . Trap . | . . . . . . . Miscellaneous . | . . . . . . . Route ------- -11/Scrapyard -10/Materials (discovered 2 exits: *Mat / *Min) -10/Mines -9/Materials (discovered 3 exits: *Min x2 / Sto) -9/Mines -9/Exiles -8/Mines History --------- Turn | Location | Event 4 | -11/Scrapyard | Discovered new exit (range 0) 4 | -11/Scrapyard | Entered Materials 147 | -10/Materials | Identified exit to Mines 150 | -10/Materials | Discovered new exit (range 3) 247 | -10/Materials | Entered Mines 380 | -10/Mines | Met a Derelict shopkeep closing up shop 449 | -10/Mines | Assembled infested the area 454 | -10/Mines | Assisted by a Guerilla fighting off Assembled 522 | -10/Mines | Received a Rocket Launcher from a helpful Derelict 523 | -10/Mines | Discovered new exit (range 16) 543 | -10/Mines | Identified exit to Materials 544 | -10/Mines | Entered Materials 544 | -9/Materials | Accompanied by 2 allies 544 | -9/Materials | Evolved 2 slots: Propulsion x1, Utility x1 549 | -9/Materials | Led the pair of lost Derelicts to an unsafe place 566 | -9/Materials | Identified exit to Mines 566 | -9/Materials | Identified exit to Storage 733 | -9/Materials | Crushed by falling debris 756 | -9/Materials | Crushed by falling debris 764 | -9/Materials | Entered Mines 769 | -9/Mines | Core integrity fell below 50% 776 | -9/Mines | Met a Derelict bent on vengeance 793 | -9/Mines | Lost 5 parts (1p3n1u) 894 | -9/Mines | Deemed a non-threat by the Exiles lab entrance 894 | -9/Mines | Discovered new exit (range 5) 898 | -9/Mines | Identified exit to Exiles 899 | -9/Mines | Entered Exiles 899 | -9/Exiles | Found Exiles lab destroyed 1033 | -9/Exiles | Build established: Mutant 1132 | -9/Exiles | Learned location of Zion (-6) 1181 | -9/Exiles | Discovered new exit (range 12) 1193 | -9/Exiles | Identified exit to Mines 1194 | -9/Exiles | Entered Mines 1296 | -8/Mines | Core integrity fell below 20% 1306 | -8/Mines | Destroyed by G-47 Trooper with Particle Gun Last Messages --------------- 01203_ Acquired 17 matter. 01205_ Acquired 12 matter. 01223_ System corrupted: Energy discharge (-50). 01279_ Aluminum Leg destroyed. 01280_ Destroyed Lgt. Nuclear Core. 01280_ B-36 Bruiser destroyed. 01280_ Aluminum Leg destroyed. 01283_ Lgt. Ion Engine destroyed. 01284_ G-50 Soldier destroyed. 01285_ The unstable cave ceiling collapses. 01287_ Sml. Storage Unit destroyed. 01287_ Critical hit (Burn: +37). 01288_ G-47 Trooper destroyed. 01291_ Rocket Launcher destroyed. 01291_ Destroyed Rocket Launcher. 01291_ Hpw. Shotgun destroyed. 01291_ Destroyed Hpw. Shotgun. 01291_ Destroyed Lgt. Nuclear Core. 01298_ System corrupted: Med. Laser rejected. 01298_ The unstable cave ceiling collapses. Map ----- +----------------------------------------------------+ | | | | | | | | | | | | | | | | | | | | | | | | | | | | | | | ?????????????????????????????????????????????????? | | ?????????????????###?????????????????????????????? | | ?????????????##### ?????????##??????????????????? | | ????????????## ????????? #????#####?????????? | | ????????????# ??????? ????# ##????????? | | ?????????????# ####??? ???? ##???????? | | ??????????????? ?? ????? #???????? | | ?????????????????# ## ?????# #???????? | | ????????????# # ###/%= #????## #????????? | | ????????????# # g ##??## #?????????? | | ???????????# %g @ #### #???????### | | ???????????# % #???????## | | ???????????# # ##??????# | | ???????????# #### #####u ##?????# | | ???????????## # #???####?## ##????# | | ??????????????# ?????????# #????# | | ??????????????# ??????????# #????# | | ??????????????## ??????????# ##????# | | ???????????????### ?????????## #??#### | | ?????????????????#????????### #### | | ????????????????????????# ## | | ???????????????????????# ## | | ???????????????????????#### ######### | | ??????????????????????????# ##????????## ### | | ??????????????????????????# ???????????#####?## # | | ??????????????????????????#???????????????????## # | | ???????????????????????????????????????????????# # | | ???????????????????????????????????????????????# # | | ???????????????????????????????????????????????# # | | ???????????????????????????????????????????????# # | | ??????????????????????????????????????????????? | | ??????????????????????????????????????????????? | | ??????????????????????????????????????????????? # | | ??????????????????????????????????????????????? ? | | ??????????????????????????????????????????????? ? | +----------------------------------------------------+ Best States ------------- Heat Dissipation 42 Energy Generation 10 Energy Capacity 250 Matter Stores 300 Matter Capacity 300 Sight Range 16 Terrain Scan Density 10 Armor Coverage 150 Resistance: KI 20 Resistance: TH 20 Resistance: EX 20 Resistance: EM 20 Resistance: I 20 Resistance: S 20 Resistance: P 20 Evasion (%) 55 Offensive Hacking 10 Item Schematics ----------------- None Robot Schematics ------------------ None Fabricated ------------ Nothing Alien Tech Used ----------------- None Achievements -------------- Part-time Excavator Challenges ------------ None Game ------ Seed CloakBiocellArray Manual? 0 Play Time 00:24:35 Cumulative 31.8 hours Start 2024.05.31 @ 17:10:48 End 2024.05.31 @ 17:33:19 Sessions 1 Manual Loads 0 Difficulty Adventurer Special Mode None Game No. 47 Rogue 0 Adventurer 47 Explorer 0 Win Type - Total 0 Types 0/0/0/0/0/0/0/0/0 Lore% 25 Gallery% 20 Achievement% 20 Wizard Run 0 Options --------- Layout 0 ASCII 0 Keyboard 0 Movement Numpad Keybinds 0 Fullscreen 1 Font 36/Smallcaps Map View 76x50 Zoom Use 0% Tactical HUD 1 Map Filters NONE Filters NONE Steam 1 RUN: 8dbe7ce2-93fd-46fa-b10f-0bce553b39d4